Name,Sub Group,Service Area ,Expense Type,Narrative,Date,Transaction No,Amount,Supplier Name,Supplier Ref,Period,Year
Allerdale Borough Council,33101,Income,Land Charges Service,Charges for Services General Income,03/12/2014,99419,90.00,BLEASDALE & CO SOLICITORS,M00250,9,2014
Allerdale Borough Council,21150,Transfer Payments,Festivals & Events,General Grants,03/12/2014,99420,100.00,CADAS,A01363,9,2014
Allerdale Borough Council,33150,Income,Credit Union,Other Fees Income,03/12/2014,99421,"2,422.00",THE ALLERDALE CREDIT UNION,A00493,9,2014
Allerdale Borough Council,14105,Transport,Parking Services Pay Group,"Fuel, Lubricants & Consumables",,99422,600.99,BP OIL UK LTD ,X00022,9,2014
Allerdale Borough Council,14105,Transport,Parking Services Pay Group,"Fuel, Lubricants & Consumables",,99423,517.17,BP OIL UK LTD ,X00022,9,2014
Allerdale Borough Council,14105,Transport,Parking Services Pay Group,"Fuel, Lubricants & Consumables",,99424,357.38,BP OIL UK LTD ,X00022,9,2014
Allerdale Borough Council,70104,VAT,VAT Control Account,VAT - 20%,03/12/2014,99425,54.64,WORKINGTON FLOWER CLUB,M00661,9,2014
Allerdale Borough Council,15101,Supplies & Services,Public Convenience Cleaning,Equipment Costs,17/12/2014,99426,201.48,WF HYGIENE & CLEANING SUPPLIES,A01794,9,2014
Allerdale Borough Council,15101,Supplies & Services,Public Convenience Cleaning,Equipment Costs,17/12/2014,99427,81.11,WF HYGIENE & CLEANING SUPPLIES,A01794,9,2014
Allerdale Borough Council,15101,Supplies & Services,Public Convenience Cleaning,Equipment Costs,17/12/2014,99428,105.86,WF HYGIENE & CLEANING SUPPLIES,A01794,9,2014
Allerdale Borough Council,12101,Premises,Corporate Property Maintenance,External Maintenance & Decoration,03/12/2014,99429,972.00,ABLE MEMORIALS LTD,A01035,9,2014
Allerdale Borough Council,15808,Supplies & Services,Multi-functional Printers,Computer Consumables,17/12/2014,99430,298.50,ANTALIS,A00122,9,2014
Allerdale Borough Council,16102,Supplies & Services,Heat Exchange Network,Regeneration Initiatives,17/12/2014,99431,"25,295.49",LAND & WATER RESOURCE CONSULTANTS LTD,A02087,9,2014
Allerdale Borough Council,15405,Supplies & Services,Solway Coast AONB Core Funding,Use of External Printers,10/12/2014,99432,985.00,MICHAELA CORRIE GRAPHIC DESIGN,A00513,9,2014
Allerdale Borough Council,15405,Supplies & Services,Members Services,Use of External Printers,03/12/2014,99433,"1,270.00",FIRPRESS PRINTERS,A00063,9,2014
Allerdale Borough Council,15513,Supplies & Services,Carnegie Theatre,Subcontractors - General,03/12/2014,99434,240.00,BURNLEY BOROUGH COUNCIL,A01628,9,2014
Allerdale Borough Council,16102,Supplies & Services,Town Centre Management,Regeneration Initiatives,10/12/2014,99436,590.00,SLUG & BULL,A01974,9,2014
Allerdale Borough Council,10401,Employee Costs,Housing Services Pay Group,Agency Staff Costs,03/12/2014,99437,845.25,TEDGEM INVESTMENTS LTD,A01962,9,2014
Allerdale Borough Council,10401,Employee Costs,Licensing Pay Group,Agency Staff Costs,03/12/2014,99438,586.48,G4S POLICING SOLUTIONS LTD,A02066,9,2014
Allerdale Borough Council,10401,Employee Costs,Licensing Pay Group,Agency Staff Costs,03/12/2014,99439,"1,919.34",G4S POLICING SOLUTIONS LTD,A02066,9,2014
Allerdale Borough Council,10401,Employee Costs,Licensing Pay Group,Agency Staff Costs,03/12/2014,99440,565.68,G4S POLICING SOLUTIONS LTD,A02066,9,2014
Allerdale Borough Council,15507,Supplies & Services,Land Charges Service,Searches,03/12/2014,99441,"1,460.00",LAKE DISTRICT NATIONAL PARK AUTHORITY,A00415,9,2014
Allerdale Borough Council,15507,Supplies & Services,Land Charges Service,Searches,03/12/2014,99442,10.00,LAKE DISTRICT NATIONAL PARK AUTHORITY,A00415,9,2014
Allerdale Borough Council,15405,Supplies & Services,Individual Elector Registration,Use of External Printers,03/12/2014,99443,"4,426.94",PRINT IMAGE NETWORK LIMITED,A01127,9,2014
Allerdale Borough Council,16150,Supplies & Services,Solway Wetlands Project,General Promotions,17/12/2014,99444,46.80,NATURAL ENGLAND,A01865,9,2014
Allerdale Borough Council,16150,Supplies & Services,Solway Wetlands Project,General Promotions,17/12/2014,99445,139.50,NATURAL ENGLAND,A01865,9,2014
Allerdale Borough Council,16150,Supplies & Services,Solway Wetlands Project,General Promotions,17/12/2014,99446,37.00,NATURAL ENGLAND,A01865,9,2014
Allerdale Borough Council,16150,Supplies & Services,Solway Wetlands Project,General Promotions,17/12/2014,99447,"1,730.78",NATURAL ENGLAND,A01865,9,2014
Allerdale Borough Council,16102,Supplies & Services,Town Centre Management,Regeneration Initiatives,10/12/2014,99448,336.00,THE COCKERMOUTH POST,A01713,9,2014
Allerdale Borough Council,10600,Employee Costs,Approved Training,Budget-Training,10/12/2014,99449,53.22,ENTERPRISE RENT A CAR,A01367,9,2014
Allerdale Borough Council,10401,Employee Costs,Customer & Transformation Programme,Agency Staff Costs,17/12/2014,99450,510.95,NORTH EAST REGIONAL EMP ORG,A01621,9,2014
Allerdale Borough Council,73102,Holding and Control Accounts,Allerdale House Tea Fund,Holding Accounts General - Expenditure,10/12/2014,99451,163.20,TELK LTD,A01670,9,2014
Allerdale Borough Council,15513,Supplies & Services,Environmental Initiatives,Subcontractors - General,03/12/2014,99452,"2,520.00",ISS WATERERS LANDSCAPE,C00044,9,2014
Allerdale Borough Council,20113,Third Party Payments,Parish Councils,Other Agencies,03/12/2014,99453,"1,930.00",CROSSCANONBY P.C.,X00066,9,2014
Allerdale Borough Council,20113,Third Party Payments,Parish Councils,Other Agencies,03/12/2014,99454,260.00,DEARHAM P.C.,X00068,9,2014
Allerdale Borough Council,20113,Third Party Payments,Parish Councils,Other Agencies,03/12/2014,99455,50.00,HAYTON & MEALO P.C.,X00074,9,2014
Allerdale Borough Council,20113,Third Party Payments,Parish Councils,Other Agencies,03/12/2014,99456,83.00,WOODSIDE P.C.,X00101,9,2014
Allerdale Borough Council,15201,Supplies & Services,Chief Executive,Entertainment Of Visitors,,99457,278.50,BARCLAYCARD COMMERCIAL,X00207,9,2014
Allerdale Borough Council,16300,Supplies & Services,Chief Executive,Budget-Miscellaneous,,99458,"1,629.77",BARCLAYCARD COMMERCIAL,X00207,9,2014
Allerdale Borough Council,15502,Supplies & Services,Legal Services,Land Registry Fees,,99475,18.00,HM LAND REGISTRY,A00505,9,2014
Allerdale Borough Council,14105,Transport,Parking Services Pay Group,"Fuel, Lubricants & Consumables",,99476,538.72,BP OIL UK LTD ,X00022,9,2014
Allerdale Borough Council,14201,Transport,Carnegie Theatre,Public Transport,03/12/2014,99477,10.30,JOSIES TAXIS,A00819,9,2014
Allerdale Borough Council,12301,Premises,Carnegie Theatre,Security,03/12/2014,99478,242.34,CUMBRIAN SYSTEMS,C00062,9,2014
Allerdale Borough Council,15513,Supplies & Services,Carnegie Theatre,Subcontractors - General,03/12/2014,99479,350.00,R W AUDIO,C00059,9,2014
Allerdale Borough Council,15810,Supplies & Services,Carnegie Theatre,Software Licences,17/12/2014,99480,27.88,TICKETS.COM LTD,A00371,9,2014
Allerdale Borough Council,10401,Employee Costs,Elections,Agency Staff Costs,10/12/2014,99481,"1,425.50",SELLICK PARTNERSHIP,A01993,9,2014
Allerdale Borough Council,15513,Supplies & Services,Carnegie Theatre,Subcontractors - General,03/12/2014,99482,640.00,R W AUDIO,C00059,9,2014
Allerdale Borough Council,15513,Supplies & Services,Carnegie Theatre,Subcontractors - General,03/12/2014,99483,95.00,R W AUDIO,C00059,9,2014
Allerdale Borough Council,15810,Supplies & Services,Carnegie Theatre,Software Licences,17/12/2014,99484,18.04,TICKETS.COM LTD,A00371,9,2014
Allerdale Borough Council,15514,Supplies & Services,Carnegie Theatre,Public Entertainment,17/12/2014,99485,"3,935.00",ARC,A01746,9,2014
Allerdale Borough Council,15101,Supplies & Services,Corporate Property Maintenance,Equipment Costs,17/12/2014,99486,191.16,ARCO LIMITED - CARLISLE,A01448,9,2014
Allerdale Borough Council,16150,Supplies & Services,Solway AONB Other Projects,General Promotions,17/12/2014,99487,120.00,WEST HOUSE,A02020,9,2014
Allerdale Borough Council,53101,Capital Expenditure,IT Costs (Allerdale Only),Purchase of Fixed Plant & Equip Capital,10/12/2014,99488,"1,929.70",CONNEXIONS GROUP LTD,C00060,9,2014
Allerdale Borough Council,16003,Supplies & Services,Customer Services Pay Group,Security of Cash Movements,17/12/2014,99489,437.56,SECURITY PLUS LIMITED,A00503,9,2014
Allerdale Borough Council,10401,Employee Costs,Public Convenience Cleaning,Agency Staff Costs,10/12/2014,99490,187.32,COCKERMOUTH TOWN COUNCIL,A00586,9,2014
Allerdale Borough Council,15202,Supplies & Services,Carnegie Theatre,Bar Provision,10/12/2014,99491,11.84,SOLWAY HEATERS LTD,A00305,9,2014
Allerdale Borough Council,16150,Supplies & Services,Carnegie Theatre,General Promotions,03/12/2014,99492,190.00,FIRPRESS PRINTERS,A00063,9,2014
Allerdale Borough Council,15101,Supplies & Services,Environmental Initiatives,Equipment Costs,03/12/2014,99493,395.48,ISS WATERERS LANDSCAPE,C00044,9,2014
Allerdale Borough Council,15101,Supplies & Services,Animal Welfare,Equipment Costs,17/12/2014,99494,"1,115.10",BROXAP LIMITED,C00048,9,2014
Allerdale Borough Council,20301,Third Party Payments,Parks and Grounds Maintenance,Contract Services-Parks & Open Spaces,03/12/2014,99495,"37,838.00",ISS WATERERS LANDSCAPE,C00044,9,2014
Allerdale Borough Council,20301,Third Party Payments,Parks and Grounds Maintenance,Contract Services-Parks & Open Spaces,03/12/2014,99496,"37,838.00",ISS WATERERS LANDSCAPE,C00044,9,2014
Allerdale Borough Council,15506,Supplies & Services,KMAG Enhancement Activity,Professional Services,17/12/2014,99497,309.00,KESWICK TOURISM ASSOCIATION,A01882,9,2014
Allerdale Borough Council,15501,Supplies & Services,Parks Development,Consultants Fees,17/12/2014,99498,200.00,Redacted information - included personal information ,A02110,9,2014
Allerdale Borough Council,15405,Supplies & Services,Members Services,Use of External Printers,10/12/2014,99499,815.00,FIRPRESS PRINTERS,A00063,9,2014
Allerdale Borough Council,54105,Capital Expenditure,Disabled Facilities Grants,Grants  Private Individuals (Capital),03/12/2014,99500,"1,925.00",THYSSEN KRUPP ENCASA A DIVISION OF THYSSENKRUPP LIMITED,X00105,9,2014
Allerdale Borough Council,54105,Capital Expenditure,Disabled Facilities Grants,Grants  Private Individuals (Capital),03/12/2014,99501,350.00,CONISTON CONSULTANTS LTD,X00210,9,2014
Allerdale Borough Council,54105,Capital Expenditure,Disabled Facilities Grants,Grants  Private Individuals (Capital),03/12/2014,99502,"2,965.00",BLUE FLAME SERVICES LTD,X00213,9,2014
Allerdale Borough Council,54105,Capital Expenditure,Disabled Facilities Grants,Grants  Private Individuals (Capital),03/12/2014,99503,"1,040.69",COOPER & PATTERSON LTD,X00170,9,2014
Allerdale Borough Council,54105,Capital Expenditure,Disabled Facilities Grants,Grants  Private Individuals (Capital),03/12/2014,99504,"2,950.00",BLUE FLAME SERVICES LTD,X00213,9,2014
Allerdale Borough Council,34150,Income,Homelessness,General Recovery of Other Costs-Income,03/12/2014,99505,40.00,Redacted information - included personal information ,M00662,9,2014
Allerdale Borough Council,26000,Earmarked Reserves,Anti Poverty,Budget-Expd funded from Reserve,10/12/2014,99506,"7,441.00",MOORCLOSE COMMUNITY CENTRE LTD,A00709,9,2014
Allerdale Borough Council,15601,Supplies & Services,Benefits,Postage,03/12/2014,99507,"1,664.53",ROYAL MAIL LETTERS,X00021,9,2014
Allerdale Borough Council,15602,Supplies & Services,Electoral Registration,Business Reply Licences,03/12/2014,99508,548.67,ROYAL MAIL LETTERS,X00021,9,2014
Allerdale Borough Council,15601,Supplies & Services,Environmental Services Pay Group,Postage,03/12/2014,99509,200.00,ROYAL MAIL LETTERS,X00021,9,2014
Allerdale Borough Council,12402,Premises,Corporate Property Maintenance,Electricity,03/12/2014,99510,35.89,EON,X00016,9,2014
Allerdale Borough Council,12408,Premises,Corporate Property Maintenance,Water & Sewage,03/12/2014,99511,86.62,UNITED UTILITIES,X00011,9,2014
Allerdale Borough Council,54105,Capital Expenditure,Disabled Facilities Grants,Grants  Private Individuals (Capital),03/12/2014,99512,"2,740.00",W W BUILDERS LIMITED,X00212,9,2014
Allerdale Borough Council,54105,Capital Expenditure,Disabled Facilities Grants,Grants  Private Individuals (Capital),03/12/2014,99513,"3,040.00",Redacted information - included personal information ,X00160,9,2014
Allerdale Borough Council,54105,Capital Expenditure,Disabled Facilities Grants,Grants  Private Individuals (Capital),03/12/2014,99514,"4,760.00",DOLPHIN STAIRLIFTS CUMBRIA,X00107,9,2014
Allerdale Borough Council,54105,Capital Expenditure,Disabled Facilities Grants,Grants  Private Individuals (Capital),03/12/2014,99515,"2,953.00",MAYSON BROS LTD,X00132,9,2014
Allerdale Borough Council,54105,Capital Expenditure,Disabled Facilities Grants,Grants  Private Individuals (Capital),03/12/2014,99516,975.00,CONISTON CONSULTANTS LTD,X00210,9,2014
Allerdale Borough Council,15505,Supplies & Services,Licensing Service,Licences,03/12/2014,99517,21.00,Redacted information - included personal information ,M00663,9,2014
Allerdale Borough Council,70104,VAT,VAT Control Account,VAT - 20%,03/12/2014,99518,"2,980.89",HRH ENTERTAINMENTS LTD,M00664,9,2014
Allerdale Borough Council,70104,VAT,Non Justified VAT,VAT - 20%,03/12/2014,99519,"4,109.78",Redacted information - included personal information ,M00166,9,2014
Allerdale Borough Council,15201,Supplies & Services,Leaders Services,Entertainment Of Visitors,10/12/2014,99520,69.29,ALLERDALE BOROUGH COUNCIL,X00034,9,2014
Allerdale Borough Council,16150,Supplies & Services,"The Hub, Workington Town Centre",General Promotions,17/12/2014,99521,500.00,CUMBRIAN NEWSPAPERS LIMITED,A00869,9,2014
Allerdale Borough Council,15403,Supplies & Services,Chief Executive,Publications and Periodicals,17/12/2014,99522,9.00,P & D NEWSAGENTS,A00237,9,2014
Allerdale Borough Council,12103,Premises,Coastal Protection and Inland Flooding,Grounds Maintenance,10/12/2014,99523,"5,212.00",THE PAINT SAINT,C00143,9,2014
Allerdale Borough Council,10401,Employee Costs,Planning and Development,Agency Staff Costs,17/12/2014,99524,"1,347.50",MATCHTECH UK LTD,A02117,9,2014
Allerdale Borough Council,10401,Employee Costs,Planning and Development,Agency Staff Costs,17/12/2014,99525,"1,382.50",MATCHTECH UK LTD,A02117,9,2014
Allerdale Borough Council,15302,Supplies & Services,Public Convenience Cleaning,Protective Clothing,17/12/2014,99526,85.00,ARCO LIMITED - CARLISLE,A01448,9,2014
Allerdale Borough Council,12309,Premises,Corporate Property Maintenance,Fire and Safety,10/12/2014,99527,965.00,PRO-TEC SYSTEMS,C00026,9,2014
Allerdale Borough Council,12201,Premises,Corporate Property Maintenance,Internal Maintenance,10/12/2014,99528,"1,267.25",RAFFERTY DECORATING SERVICES LTD,C00117,9,2014
Allerdale Borough Council,15401,Supplies & Services,Document Management Pay Group,General Stationery,17/12/2014,99529,217.45,LYRECO,A00043,9,2014
Allerdale Borough Council,15104,Supplies & Services,Bereavement Services,Supplies for Resale,10/12/2014,99530,51.00,GRANART,A00644,9,2014
Allerdale Borough Council,15203,Supplies & Services,Carnegie Theatre,Catering Costs and Consumables,10/12/2014,99531,28.50,Redacted information - included personal information ,A01052,9,2014
Allerdale Borough Council,20102,Third Party Payments,Recycling,Horticulture (Obsolete),10/12/2014,99532,"3,189.02",FCC RECYCLING (UK) LTD (ALCO),A00185,9,2014
Allerdale Borough Council,15514,Supplies & Services,Carnegie Theatre,Public Entertainment,10/12/2014,99533,37.45,Redacted information - included personal information ,A01052,9,2014
Allerdale Borough Council,15811,Supplies & Services,IT Services,Software Maintenance,17/12/2014,99534,"3,875.00",IDOX SOFTWARE LTD,A00291,9,2014
Allerdale Borough Council,16300,Supplies & Services,Delivering Jobs and Growth,Budget-Miscellaneous,10/12/2014,99535,"4,845.00",SINCLAIR KNIGHT MERZ (TRADING AS JABOBS),A02078,9,2014
Allerdale Borough Council,20102,Third Party Payments,Recycling,Horticulture (Obsolete),10/12/2014,99536,30.50,THOMPSONS PLANT HIRE LTD,A00262,9,2014
Allerdale Borough Council,20102,Third Party Payments,Recycling,Horticulture (Obsolete),10/12/2014,99537,865.00,THOMPSONS PLANT HIRE LTD,A00262,9,2014
Allerdale Borough Council,14100,Transport,Mayoral Services,Budget-Council Vehicles (Non-capital),10/12/2014,99538,35.00,ACE TAXIS,A01927,9,2014
Allerdale Borough Council,14101,Transport,Mayoral Services,Vehicle Leasing,10/12/2014,99539,30.00,ACE TAXIS,A01927,9,2014
Allerdale Borough Council,14100,Transport,Mayoral Services,Budget-Council Vehicles (Non-capital),10/12/2014,99540,30.00,ACE TAXIS,A01927,9,2014
Allerdale Borough Council,14101,Transport,Mayoral Services,Vehicle Leasing,10/12/2014,99541,30.00,ACE TAXIS,A01927,9,2014
Allerdale Borough Council,14100,Transport,Mayoral Services,Budget-Council Vehicles (Non-capital),10/12/2014,99542,30.00,ACE TAXIS,A01927,9,2014
Allerdale Borough Council,14100,Transport,Mayoral Services,Budget-Council Vehicles (Non-capital),10/12/2014,99543,30.00,ACE TAXIS,A01927,9,2014
Allerdale Borough Council,14100,Transport,Mayoral Services,Budget-Council Vehicles (Non-capital),10/12/2014,99544,100.00,ACE TAXIS,A01927,9,2014
Allerdale Borough Council,14100,Transport,Mayoral Services,Budget-Council Vehicles (Non-capital),10/12/2014,99545,150.00,ACE TAXIS,A01927,9,2014
Allerdale Borough Council,14100,Transport,Mayoral Services,Budget-Council Vehicles (Non-capital),10/12/2014,99546,30.00,ACE TAXIS,A01927,9,2014
Allerdale Borough Council,15101,Supplies & Services,Carnegie Theatre,Equipment Costs,,99547,79.99,BOOKER CASH & CARRY,A01419,9,2014
Allerdale Borough Council,15202,Supplies & Services,Carnegie Theatre,Bar Provision,,99548,161.12,BOOKER CASH & CARRY,A01419,9,2014
Allerdale Borough Council,16102,Supplies & Services,Supporting Allerdale Town Centres,Regeneration Initiatives,10/12/2014,99549,300.00,LAKELAND SLATE COMPANY,A02118,9,2014
Allerdale Borough Council,20305,Third Party Payments,Maryport Wave,Contract Services-Leisure Centres,10/12/2014,99550,"12,500.00",CARLISLE LEISURE LTD,A00136,9,2014
Allerdale Borough Council,20305,Third Party Payments,Sports & Leisure Centres,Contract Services-Leisure Centres,10/12/2014,99551,"50,600.00",CARLISLE LEISURE LTD,A00136,9,2014
Allerdale Borough Council,16150,Supplies & Services,Solway Wetlands Project,General Promotions,17/12/2014,99552,250.00,STEVE BLAKE PHOTOGRAPHY,A01930,9,2014
Allerdale Borough Council,16150,Supplies & Services,Solway Wetlands Project,General Promotions,10/12/2014,99553,300.00,STEVE BLAKE PHOTOGRAPHY,A01930,9,2014
Allerdale Borough Council,12403,Premises,Homelessness,Gas,17/12/2014,99554,142.00,MEPOS LIMITED,A01286,9,2014
Allerdale Borough Council,12101,Premises,Tenanted Properties,External Maintenance & Decoration,17/12/2014,99555,160.00,W G MACKAY LTD,A01711,9,2014
Allerdale Borough Council,12201,Premises,Corporate Property Maintenance,Internal Maintenance,10/12/2014,99556,360.00,MAGPIE SERVICES,A00261,9,2014
Allerdale Borough Council,12101,Premises,Corporate Property Maintenance,External Maintenance & Decoration,10/12/2014,99557,591.50,MAGPIE SERVICES ,A00261,9,2014
Allerdale Borough Council,10401,Employee Costs,Carnegie Theatre,Agency Staff Costs,10/12/2014,99558,607.50,ADECCO RECRUITMENT,A00188,9,2014
Allerdale Borough Council,10401,Employee Costs,Carnegie Theatre,Agency Staff Costs,10/12/2014,99559,607.50,ADECCO RECRUITMENT,A00188,9,2014
Allerdale Borough Council,16150,Supplies & Services,Solway AONB Other Projects,General Promotions,10/12/2014,99560,31.80,CARRS BILLINGTON AGRICULTURE,A00884,9,2014
Allerdale Borough Council,15506,Supplies & Services,Carnegie Theatre,Professional Services,10/12/2014,99561,53.08,ADECCO RECRUITMENT,A00188,9,2014
Allerdale Borough Council,16150,Supplies & Services,Town Centre Management,General Promotions,17/12/2014,99562,250.00,CUMBRIAN NEWSPAPERS LIMITED,A00869,9,2014
Allerdale Borough Council,15506,Supplies & Services,Communications and Marketing,Professional Services,10/12/2014,99563,"7,920.00",NWA SOCIAL & MARKET RESEARCH LTD,A02082,9,2014
Allerdale Borough Council,15401,Supplies & Services,Solway Coast AONB Core Funding,General Stationery,17/12/2014,99564,40.49,VIKING DIRECT,A00828,9,2014
Allerdale Borough Council,15203,Supplies & Services,Solway Coast AONB Core Funding,Catering Costs and Consumables,17/12/2014,99565,67.46,VIKING DIRECT,A00828,9,2014
Allerdale Borough Council,15601,Supplies & Services,Benefits,Postage,10/12/2014,99566,"1,471.75",ROYAL MAIL LETTERS,X00021,9,2014
Allerdale Borough Council,15501,Supplies & Services,Revenue,Consultants Fees,10/12/2014,99567,385.00,ROSSENDALES LTD,A00964,9,2014
Allerdale Borough Council,15501,Supplies & Services,Revenue,Consultants Fees,10/12/2014,99568,10.00,ROSSENDALES LTD,A00964,9,2014
Allerdale Borough Council,15501,Supplies & Services,Revenue,Consultants Fees,10/12/2014,99569,4.31,ROSSENDALES LTD,A00964,9,2014
Allerdale Borough Council,15501,Supplies & Services,Revenue,Consultants Fees,10/12/2014,99570,75.00,ROSSENDALES LTD,A00964,9,2014
Allerdale Borough Council,15501,Supplies & Services,Revenue,Consultants Fees,10/12/2014,99571,20.00,ROSSENDALES LTD,A00964,9,2014
Allerdale Borough Council,12405,Premises,Off-street - Owned,Rentals and Lease Charges,10/12/2014,99572,"4,000.00",KESWICK RUGBY FOOTBALL CLUB LTD,X00117,9,2014
Allerdale Borough Council,15703,Supplies & Services,IT Services,Call Charges,17/12/2014,99573,799.62,VODAFONE (PREV CABLE & WIRELESS),A00934,9,2014
Allerdale Borough Council,12101,Premises,Corporate Property Maintenance,External Maintenance & Decoration,10/12/2014,99574,300.00,MAGPIE SERVICES (ANDREW COID T/A),A00261,9,2014
Allerdale Borough Council,15811,Supplies & Services,IT Services,Software Maintenance,17/12/2014,99575,264.00,SAGE (UK) LTD,A01911,9,2014
Allerdale Borough Council,12303,Premises,Carnegie Theatre,Window Cleaning,10/12/2014,99576,39.14,J A LEE WINDOWS,A00051,9,2014
Allerdale Borough Council,15101,Supplies & Services,Public Convenience Cleaning,Equipment Costs,17/12/2014,99577,37.62,WF HYGIENE & CLEANING SUPPLIES,A01794,9,2014
Allerdale Borough Council,12101,Premises,Car Parks Inspection & Maintenance,External Maintenance & Decoration,10/12/2014,99578,970.00,Redacted information - included personal information ,C00008,9,2014
Allerdale Borough Council,15501,Supplies & Services,Food and Occupational Health,Consultants Fees,10/12/2014,99579,110.00,GALEMIRE VETERINARY HOSPITAL,A00328,9,2014
Allerdale Borough Council,15404,Supplies & Services,Building Control - Chargeable,Reference Materials,10/12/2014,99580,320.45,LEXISNEXIS BUTTERWORTHS,A00356,9,2014
Allerdale Borough Council,14200,Transport,Director of Resources & PA,Budget-Travel,10/12/2014,99581,25.50,EILBECK RENTAL,A01161,9,2014
Allerdale Borough Council,10401,Employee Costs,Carnegie Theatre,Agency Staff Costs,10/12/2014,99582,607.50,ADECCO RECRUITMENT,A00188,9,2014
Allerdale Borough Council,12103,Premises,Coastal Protection and Inland Flooding,Grounds Maintenance,17/12/2014,99583,54.10,WALCON MARINE LIMITED,C00152,9,2014
Allerdale Borough Council,33101,Income,Street Cleansing,Charges for Services General Income,10/12/2014,99584,50.00,AUTO SALVAGE,A00078,9,2014
Allerdale Borough Council,15101,Supplies & Services,Recycling,Equipment Costs,17/12/2014,99585,"16,814.95",BPI RECYCLED PRODUCTS,A00318,9,2014
Allerdale Borough Council,14100,Transport,Mayoral Services,Budget-Council Vehicles (Non-capital),10/12/2014,99586,175.00,ACE TAXIS,A01927,9,2014
Allerdale Borough Council,14101,Transport,Mayoral Services,Vehicle Leasing,10/12/2014,99587,50.00,ACE TAXIS,A01927,9,2014
Allerdale Borough Council,12405,Premises,Multi-storey Car Park,Rentals and Lease Charges,17/12/2014,99588,"75,122.64",SCOOP AM LLP,A02086,9,2014
Allerdale Borough Council,20150,Third Party Payments,Multi-storey Car Park,General Partnership Service Fees,10/12/2014,99589,"53,706.90",PARKSAFE,A00647,9,2014
Allerdale Borough Council,72109,,Sub-Contractors,72109 - Post Payment Tax Account,,99590,"3,019.60",INLAND REVENUE,X00023,9,2014
Allerdale Borough Council,15704,Supplies & Services,IT Services,Mobile Phones,10/12/2014,99591,"1,153.84",VODAFONE,A00551,9,2014
Allerdale Borough Council,15804,Supplies & Services,IT Services,Computer Data Lines B.T.,17/12/2014,99592,"1,642.21",VODAFONE (PREV CABLE & WIRELESS),A00934,9,2014
Allerdale Borough Council,15507,Supplies & Services,Shared Revs & Bens,Searches,10/12/2014,99593,"104,241.67",CARLISLE CITY COUNCIL,A00161,9,2014
Allerdale Borough Council,33112,Income,Planning and Development,Planning Fees Income,10/12/2014,99594,385.00,HUDSON SWAN ENGINEERING LTD,M00665,9,2014
Allerdale Borough Council,34150,Income,Planning and Development,General Recovery of Other Costs-Income,10/12/2014,99595,136.00,AYFER KOC CAFERIA,M00666,9,2014
Allerdale Borough Council,33112,Income,Planning and Development,Planning Fees Income,10/12/2014,99596,385.00,T J COATES LTD,M00667,9,2014
Allerdale Borough Council,33112,Income,Planning and Development,Planning Fees Income,10/12/2014,99597,98.00,AGR RENEWABLES,M00668,9,2014
Allerdale Borough Council,33113,Income,Building Control - Chargeable,Building Control Fees Income,10/12/2014,99598,134.23,FINESSE,X00194,9,2014
Allerdale Borough Council,34150,Income,Building Control - Chargeable,General Recovery of Other Costs-Income,10/12/2014,99599,15.00,PAISLEYS SOLICITORS,M00216,9,2014
Allerdale Borough Council,33113,Income,Building Control - Chargeable,Building Control Fees Income,10/12/2014,99600,194.45,Redacted information - included personal information ,M00669,9,2014
Allerdale Borough Council,33113,Income,Building Control - Chargeable,Building Control Fees Income,10/12/2014,99601,231.29,Redacted information - included personal information ,M00670,9,2014
Allerdale Borough Council,15804,Supplies & Services,Shared ICT Costs,Computer Data Lines B.T.,17/12/2014,99602,"23,632.50",VODAFONE (PREV CABLE & WIRELESS),A00934,9,2014
Allerdale Borough Council,15505,Supplies & Services,Licensing Service,Licences,10/12/2014,99603,37.00,Redacted information - included personal information ,M00671,9,2014
Allerdale Borough Council,99902,Suspense Acc,Other Income Suspense Account,Suspense - Income Not Yet Identified,10/12/2014,99604,135.00,NEW BALANCE,M00672,9,2014
Allerdale Borough Council,33112,Income,Planning and Development,Planning Fees Income,10/12/2014,99605,172.00,VECTIS,M00447,9,2014
Allerdale Borough Council,15502,Supplies & Services,Legal Services,Land Registry Fees,,99606,58.00,HM LAND REGISTRY,A00505,9,2014
Allerdale Borough Council,33113,Income,Building Control - Chargeable,Building Control Fees Income,10/12/2014,99607,11.90,Redacted information - included personal information ,M00673,9,2014
Allerdale Borough Council,33112,Income,Planning and Development,Planning Fees Income,10/12/2014,99608,110.00,Redacted information - included personal information ,M00674,9,2014
Allerdale Borough Council,21150,Transfer Payments,Festivals & Events,General Grants,10/12/2014,99609,100.00,WIGTON TOWN COUNCIL,X00099,9,2014
Allerdale Borough Council,16150,Supplies & Services,Town Centre Management,General Promotions,10/12/2014,99610,250.00,WORKINGTON TRANSPORT HERITAGE,A00793,9,2014
Allerdale Borough Council,54105,Capital Expenditure,Cluster of Empty Homes,Grants  Private Individuals (Capital),10/12/2014,99611,675.00,Redacted information - included personal information ,X00230,9,2014
Allerdale Borough Council,54105,Capital Expenditure,Disabled Facilities Grants,Grants  Private Individuals (Capital),10/12/2014,99612,"2,962.93",JACOBS STOBBARTS LIMITED,C00139,9,2014
Allerdale Borough Council,54105,Capital Expenditure,Disabled Facilities Grants,Grants  Private Individuals (Capital),10/12/2014,99613,"10,015.00",K BAILIFF & SON LIMITED,X00116,9,2014
Allerdale Borough Council,14100,Transport,Mayoral Services,Budget-Council Vehicles (Non-capital),10/12/2014,99614,30.00,ACE TAXIS,A01927,9,2014
Allerdale Borough Council,15506,Supplies & Services,Revs & Bens Transformation Project,Professional Services,10/12/2014,99615,"11,621.67",LIBERATA UK LTD,C00122,9,2014
Allerdale Borough Council,15506,Supplies & Services,Legal Services,Professional Services,17/12/2014,99616,80.85,BOND DICKINSON LLP,A01933,9,2014
Allerdale Borough Council,14150,Transport,Gates Travel,General-Council Vehicles (Non-Capital),17/12/2014,99617,"1,612.95",GATES TRAVEL,A01525,9,2014
Allerdale Borough Council,15506,Supplies & Services,Communications and Marketing,Professional Services,10/12/2014,99618,"1,800.00",ELSWORTH COMMUNICATIONS,A01869,9,2014
Allerdale Borough Council,15512,Supplies & Services,Animal Welfare,Kennelling,10/12/2014,99619,"2,641.00",WHINMILL FARM CANINE CENTRE,A00117,9,2014
Allerdale Borough Council,15401,Supplies & Services,Document Management Pay Group,General Stationery,17/12/2014,99620,141.94,LYRECO,A00043,9,2014
Allerdale Borough Council,73102,Holding and Control Accounts,Busy Bees Childcare Scheme,Holding Accounts General - Expenditure,17/12/2014,99621,"1,084.00",COMPUTERSHARE VOUCHER SERVICES,A00991,9,2014
Allerdale Borough Council,15808,Supplies & Services,IT Services,Computer Consumables,17/12/2014,99622,65.89,MISCO,A00125,9,2014
Allerdale Borough Council,15803,Supplies & Services,Planning Service Del Improvement,Hardware Purchase,17/12/2014,99623,170.26,MISCO,A00125,9,2014
Allerdale Borough Council,15803,Supplies & Services,Planning Service Del Improvement,Hardware Purchase,17/12/2014,99624,72.95,MISCO,A00125,9,2014
Allerdale Borough Council,16150,Supplies & Services,Town Centre Management,General Promotions,10/12/2014,99625,133.00,JIM DAVIS PHOTOGRAPHY,A00627,9,2014
Allerdale Borough Council,16150,Supplies & Services,"The Hub, Workington Town Centre",General Promotions,17/12/2014,99626,200.00,Redacted information - included personal information ,A01408,9,2014
Allerdale Borough Council,15601,Supplies & Services,Solway Coast AONB Core Funding,Postage,17/12/2014,99627,218.05,VIKING DIRECT,A00828,9,2014
Allerdale Borough Council,12303,Premises,Corporate Property Maintenance,Window Cleaning,17/12/2014,99628,239.55,J A LEE WINDOWS,A00051,9,2014
Allerdale Borough Council,16301,Supplies & Services,KMAG Enhancement Activity,Reimbursement,10/12/2014,99629,"1,090.08",KESWICK MUSEUM & ART GALLERY,A00337,9,2014
Allerdale Borough Council,15101,Supplies & Services,Trade Waste,Equipment Costs,17/12/2014,99630,197.00,FIRPRESS PRINTERS,A00063,9,2014
Allerdale Borough Council,15102,Supplies & Services,Domestic Waste,Equipment Repair & Maintenance,10/12/2014,99631,590.80,Redacted information - included personal information ,A00176,9,2014
Allerdale Borough Council,15101,Supplies & Services,Animal Welfare,Equipment Costs,17/12/2014,99632,179.00,BROXAP LIMITED,C00048,9,2014
Allerdale Borough Council,15513,Supplies & Services,Animal Welfare,Subcontractors - General,10/12/2014,99633,11.01,GALEMIRE VETERINARY HOSPITAL,A00328,9,2014
Allerdale Borough Council,15513,Supplies & Services,Animal Welfare,Subcontractors - General,10/12/2014,99634,58.38,GALEMIRE VETERINARY HOSPITAL,A00328,9,2014
Allerdale Borough Council,15513,Supplies & Services,Carnegie Theatre,Subcontractors - General,17/12/2014,99635,320.00,R W AUDIO,C00059,9,2014
Allerdale Borough Council,15103,Supplies & Services,Members Services,Purchase of Materials,10/12/2014,99636,136.80,CASTELLI DIARIES LTD,A02099,9,2014
Allerdale Borough Council,15501,Supplies & Services,Planning Policy,Consultants Fees,17/12/2014,99637,"16,256.70",KNIGHT KAVANAGH & PAGE,A01844,9,2014
Allerdale Borough Council,15506,Supplies & Services,Anti Poverty,Professional Services,17/12/2014,99638,630.00,Redacted information - included personal information ,A02012,9,2014
Allerdale Borough Council,26000,Earmarked Reserves,Anti Poverty,Budget-Expd funded from Reserve,10/12/2014,99639,"1,110.00",Redacted information - included personal information ,A02012,9,2014
Allerdale Borough Council,10600,Employee Costs,Training,Budget-Training,17/12/2014,99640,36.98,ENTERPRISE RENT A CAR,A01367,9,2014
Allerdale Borough Council,73102,Holding and Control Accounts,Busy Bees Childcare Scheme,Holding Accounts General - Expenditure,17/12/2014,99641,59.62,COMPUTERSHARE VOUCHER SERVICES,A00991,9,2014
Allerdale Borough Council,15506,Supplies & Services,Licensing Service,Professional Services,10/12/2014,99643,750.00,KINGS CHAMBERS,A00348,9,2014
Allerdale Borough Council,10401,Employee Costs,Housing Services Pay Group,Agency Staff Costs,10/12/2014,99644,845.25,TEDGEM INVESTMENTS LTD,A01962,9,2014
Allerdale Borough Council,21150,Transfer Payments,Festivals & Events,General Grants,10/12/2014,99645,50.00,KESWICK T.C.,X00080,9,2014
Allerdale Borough Council,21150,Transfer Payments,BEC Social Investment Fund,General Grants,17/12/2014,99646,"30,000.00",THE KIRKGATE CENTRE,M00133,9,2014
Allerdale Borough Council,10601,Employee Costs,Organisational Dev Team Pay Group,External Courses & Seminar Fees,,99647,353.07,BARCLAYCARD COMMERCIAL,X00207,9,2014
Allerdale Borough Council,21150,Transfer Payments,BEC Social Investment Fund,General Grants,17/12/2014,99648,"20,000.00",CUMBRIA RECYCLING LTD,A00671,9,2014
Allerdale Borough Council,15403,Supplies & Services,Solway Coast AONB Core Funding,Publications and Periodicals,17/12/2014,99649,90.09,ALLERDALE BOROUGH COUNCIL - AONB,X00216,9,2014
Allerdale Borough Council,52106,Capital Expenditure,New Leisure Facility,Consultants Fees (Capital),17/12/2014,99650,"3,740.00",PICK EVERARD,A02007,9,2014
Allerdale Borough Council,20150,Third Party Payments,Parking Services Pay Group,General Partnership Service Fees,17/12/2014,99651,49.50,PATROL,A00952,9,2014
Allerdale Borough Council,10401,Employee Costs,Planning and Development,Agency Staff Costs,17/12/2014,99652,"1,338.75",MATCHTECH UK LTD,A02117,9,2014
Allerdale Borough Council,15505,Supplies & Services,Planning and Development,Licences,17/12/2014,99653,129.57,CENTREMAPS,A00512,9,2014
Allerdale Borough Council,12203,Premises,Public Convenience Cleaning,Plumbing and Heating Maintenance,17/12/2014,99654,550.00,Redacted information - included personal information ,C00008,9,2014
Allerdale Borough Council,15202,Supplies & Services,Carnegie Theatre,Bar Provision,17/12/2014,99655,121.58,C.S. DRINKS LTD,A00005,9,2014
Allerdale Borough Council,15550,Supplies & Services,Carnegie Theatre,General-Service Related Fees,17/12/2014,99656,10.00,TRANSACTION NETWORK SERVICES (UK) LTD,A01778,9,2014
Allerdale Borough Council,16350,Supplies & Services,Anti Poverty,Miscellaneous Expenses,17/12/2014,99657,400.00,MAGPIE SERVICES,A00261,9,2014
Allerdale Borough Council,15103,Supplies & Services,Arts Development,Purchase of Materials,17/12/2014,99658,76.44,RUNNING IMP INTERNATIONAL LTD,A02100,9,2014
Allerdale Borough Council,15501,Supplies & Services,Homelessness,Consultants Fees,17/12/2014,99659,30.00,MARYPORT HEALTH SERVICE,A00421,9,2014
Allerdale Borough Council,15808,Supplies & Services,IT Services,Computer Consumables,,99660,102.06,PROBRAND,A00040,9,2014
Allerdale Borough Council,10600,Employee Costs,Human Resources Pay Group,Budget-Training,17/12/2014,99661,"1,500.00",INVESTORS IN PEOPLE NORTHWEST,A01284,9,2014
Allerdale Borough Council,16150,Supplies & Services,Solway Coast AONB Core Funding,General Promotions,17/12/2014,99662,938.98,SOLWAY FIRTH PARTNERSHIP,A01548,9,2014
Allerdale Borough Council,21150,Transfer Payments,Supporting Festivals and Community Event,General Grants,17/12/2014,99663,"17,500.00",CN EVENTS MANAGEMENT,A01099,9,2014
Allerdale Borough Council,20304,Third Party Payments,Recycling,Contract Services-Recycling,17/12/2014,99664,"375,530.99",FCC ENVIRONMENT SERVICES (FOCSA),A00085,9,2014
Allerdale Borough Council,52106,Capital Expenditure,New Leisure Facility,Consultants Fees (Capital),17/12/2014,99665,"13,918.73",PICK EVERARD,A02007,9,2014
Allerdale Borough Council,51101,Capital Expenditure,New Leisure Facility,External Contractor Payments (Capital),17/12/2014,99666,"32,764.04",WILLMOTT DIXON CAPITAL WORKS LTD,C00127,9,2014
Allerdale Borough Council,15510,Supplies & Services,Confidential Waste,Disposal of Waste,17/12/2014,99667,126.50,J DUFFY LTD T/A PW CONF BUS SERVICES,A01846,9,2014
Allerdale Borough Council,20102,Third Party Payments,Recycling,Horticulture (Obsolete),17/12/2014,99668,937.12,FCC RECYCLING (UK) LTD (ALCO),A00185,9,2014
Allerdale Borough Council,20102,Third Party Payments,Recycling,Horticulture (Obsolete),17/12/2014,99669,"1,786.00",FCC RECYCLING (UK) LTD (ALCO),A00185,9,2014
Allerdale Borough Council,15101,Supplies & Services,Trade Waste,Equipment Costs,17/12/2014,99670,137.00,FIRPRESS PRINTERS,A00063,9,2014
Allerdale Borough Council,16100,Supplies & Services,Electoral Registration,Budget-Advertising and Promotions,17/12/2014,99671,42.00,SOUTH LAKELAND DISTRICT COUNCIL,A00569,9,2014
Allerdale Borough Council,15203,Supplies & Services,Carnegie Theatre,Catering Costs and Consumables,17/12/2014,99672,70.90,G & M SUPPLIES,A00033,9,2014
Allerdale Borough Council,15100,Supplies & Services,New Centre Development,"Budget-Equipment, Furniture & Materials",,99673,"15,000.00",LONSDALE SETTLED ESTATES,A02109,9,2014
Allerdale Borough Council,15100,Supplies & Services,New Centre Development,"Budget-Equipment, Furniture & Materials",,99674,"2,585.00",LONSDALE SETTLED ESTATES,A02109,9,2014
Allerdale Borough Council,15505,Supplies & Services,New Leisure Facility,Licences,,99675,"10,000.00",LONSDALE SETTLED ESTATES,A02109,9,2014
Allerdale Borough Council,15506,Supplies & Services,New Leisure Facility,Professional Services,,99676,"1,806.00",LONSDALE SETTLED ESTATES,A02109,9,2014
Allerdale Borough Council,16001,Supplies & Services,Banking and Interest,Bank Charges and Fees,12/12/2014,99678,32.00,HSBC CARD SERVICES,X00000,9,2014
Allerdale Borough Council,16350,Supplies & Services,Supporting Homes at risk of flooding,Miscellaneous Expenses,17/12/2014,99679,"5,000.00",Redacted information - included personal information ,M00675,9,2014
Allerdale Borough Council,15101,Supplies & Services,Parking Services Pay Group,Equipment Costs,,99680,-63.00,NAGELS MULTIGRAPHIC LTD,A00690,9,2014
Allerdale Borough Council,15101,Supplies & Services,Parking Services Pay Group,Equipment Costs,,99681,63.00,NAGELS MULTIGRAPHIC LTD,A00690,9,2014
Allerdale Borough Council,12402,Premises,Corporate Property Maintenance,Electricity,17/12/2014,99682,246.21,N POWER ,X00015,9,2014
Allerdale Borough Council,12405,Premises,Off-street - Owned,Rentals and Lease Charges,17/12/2014,99683,"9,738.59",CAPITA PROPERTY & INFRASTRUCTURE LIMITED,A01748,9,2014
Allerdale Borough Council,15202,Supplies & Services,Carnegie Theatre,Bar Provision,17/12/2014,99684,-538.21,CLASSIC DRINKS LIMITED,A00413,9,2014
Allerdale Borough Council,15501,Supplies & Services,Planning Policy,Consultants Fees,17/12/2014,99685,"-18,063.00",KNIGHT KAVANAGH & PAGE,A01844,9,2014
Allerdale Borough Council,15501,Supplies & Services,Planning Policy,Consultants Fees,17/12/2014,99686,"18,063.00",KNIGHT KAVANAGH & PAGE,A01844,9,2014
Allerdale Borough Council,16001,Supplies & Services,Banking and Interest,Bank Charges and Fees,17/12/2014,99687,62.24,THE POLICE & CRIME COMMISSIONER FOR CUMBRIA,M00443,9,2014
Allerdale Borough Council,20150,Third Party Payments,Multi-storey Car Park,General Partnership Service Fees,17/12/2014,99688,"49,565.30",PARKSAFE,A00647,9,2014
Allerdale Borough Council,15300,Supplies & Services,Animal Welfare,Budget-Prov of Clothing and Equipment,17/12/2014,99689,82.94,ARCO LIMITED,A00045,9,2014
Allerdale Borough Council,15300,Supplies & Services,Animal Welfare,Budget-Prov of Clothing and Equipment,17/12/2014,99690,-82.94,ARCO LIMITED ,A00045,9,2014
Allerdale Borough Council,10401,Employee Costs,Planning and Development,Agency Staff Costs,17/12/2014,99691,"1,593.75",THE OYSTER PARTNERSHIP LTD,C00118,9,2014
Allerdale Borough Council,10401,Employee Costs,Planning and Development,Agency Staff Costs,17/12/2014,99692,"1,604.38",THE OYSTER PARTNERSHIP LTD,C00118,9,2014
Allerdale Borough Council,15403,Supplies & Services,Communications and Marketing,Publications and Periodicals,17/12/2014,99693,73.80,P & D NEWSAGENTS,A00237,9,2014
Allerdale Borough Council,15514,Supplies & Services,Mayor's Fund,Public Entertainment,17/12/2014,99694,9.00,P & D NEWSAGENTS,A00237,9,2014
Allerdale Borough Council,10607,Employee Costs,Director of Operations,Subsistence,17/12/2014,99695,478.65,AL'S KITCHEN,A00187,9,2014
Allerdale Borough Council,16150,Supplies & Services,Town Centre Management,General Promotions,17/12/2014,99696,659.13,AST SIGNS LIMITED,A01473,9,2014
Allerdale Borough Council,15802,Supplies & Services,Parking Services Pay Group,Hardware Maintenance,17/12/2014,99697,58.08,RELIANCE HIGH-TECH LTD,C00123,9,2014
Allerdale Borough Council,15101,Supplies & Services,Pest Control,Equipment Costs,17/12/2014,99698,253.60,KILLGERM CHEMICALS LTD,A00361,9,2014
Allerdale Borough Council,10401,Employee Costs,Planning and Development,Agency Staff Costs,17/12/2014,99699,"1,593.75",THE OYSTER PARTNERSHIP LTD,C00118,9,2014
Allerdale Borough Council,15904,Supplies & Services,Members Services,Training,17/12/2014,99700,200.00,LOCAL GOVERNMENT ASSOCIATION,A00909,9,2014
Allerdale Borough Council,12303,Premises,Corporate Property Maintenance,Window Cleaning,17/12/2014,99701,139.40,J A LEE WINDOWS,A00051,9,2014
Allerdale Borough Council,10401,Employee Costs,Planning and Development,Agency Staff Costs,17/12/2014,99702,"1,593.75",THE OYSTER PARTNERSHIP LTD,C00118,9,2014
Allerdale Borough Council,12305,Premises,Corporate Property Maintenance,Inspections and Services,17/12/2014,99703,"4,279.48",O'CONNELL & BEAN (MECH&ELEC) LTD,C00078,9,2014
Allerdale Borough Council,10401,Employee Costs,Elections,Agency Staff Costs,17/12/2014,99704,"9,728.07",ASSOCIATION OF ELECTORAL ADMIN,A00189,9,2014
Allerdale Borough Council,20150,Third Party Payments,Museums,General Partnership Service Fees,17/12/2014,99705,"12,000.00",MARYPORT MARITIME MUSEUM,A01310,9,2014
Allerdale Borough Council,14104,Transport,Public Convenience Cleaning,Repairs & Maintenance,17/12/2014,99706,86.66,GOODFELLOW & SONS,A00031,9,2014
Allerdale Borough Council,14104,Transport,Public Convenience Cleaning,Repairs & Maintenance,17/12/2014,99707,65.00,GOODFELLOW & SONS,A00031,9,2014
Allerdale Borough Council,12103,Premises,Harrington Harbour,Grounds Maintenance,17/12/2014,99708,540.00,FIRTH FABRICATION SERVICES,C00020,9,2014
Allerdale Borough Council,12101,Premises,Corporate Property Maintenance,External Maintenance & Decoration,17/12/2014,99709,60.00,FIRTH FABRICATION SERVICES,C00020,9,2014
Allerdale Borough Council,15506,Supplies & Services,Communications and Marketing,Professional Services,17/12/2014,99710,170.00,LAKES PR LIMITED,A01912,9,2014
Allerdale Borough Council,12302,Premises,Solway Coast AONB Core Funding,Building Cleaning,17/12/2014,99711,63.30,ORIAN SOLUTIONS LTD,A01814,9,2014
Allerdale Borough Council,12307,Premises,Corporate Property Maintenance,Fixtures and Fittings,17/12/2014,99712,132.03,THYSSENKRUPP ELEVATOR UK LTD,C00072,9,2014
Allerdale Borough Council,14104,Transport,Parking Services Pay Group,Repairs & Maintenance,17/12/2014,99713,195.00,FCC ENVIRONMENT SERVICES (FOCSA),A00085,9,2014
Allerdale Borough Council,14104,Transport,Public Convenience Cleaning,Repairs & Maintenance,17/12/2014,99714,691.50,FCC ENVIRONMENT SERVICES (FOCSA),A00085,9,2014
Allerdale Borough Council,12103,Premises,Coastal Protection and Inland Flooding,Grounds Maintenance,17/12/2014,99715,"2,315.00",IAN WILSON HAULAGE LIMITED,A01278,9,2014
Allerdale Borough Council,12101,Premises,Corporate Property Maintenance,External Maintenance & Decoration,17/12/2014,99716,150.00,J DUFFY LTD T/A PW CONF BUS SERVICES,A01846,9,2014
Allerdale Borough Council,10401,Employee Costs,IT - New Initiatives,Agency Staff Costs,,99717,975.00,HAYS SPECIALIST RECRUITMENT LTD,A00280,9,2014
Allerdale Borough Council,15501,Supplies & Services,Environmental Protection,Consultants Fees,17/12/2014,99718,440.00,UNITED UTILITIES PLC,A01657,9,2014
Allerdale Borough Council,12201,Premises,Homelessness,Internal Maintenance,17/12/2014,99719,739.48,DERWENT & SOLWAY (BACS &DIRECT DEBIT),A00219,9,2014
Allerdale Borough Council,15401,Supplies & Services,Document Management Pay Group,General Stationery,17/12/2014,99720,602.78,LYRECO,A00043,9,2014
Allerdale Borough Council,15810,Supplies & Services,Carnegie Theatre,Software Licences,17/12/2014,99721,16.40,TICKETS.COM LTD,A00371,9,2014
Allerdale Borough Council,73102,Holding and Control Accounts,Workington Hall Repairs,Holding Accounts General - Expenditure,17/12/2014,99722,"8,225.00",MOSEDALE GILLATT,A01020,9,2014
Allerdale Borough Council,15202,Supplies & Services,Carnegie Theatre,Bar Provision,17/12/2014,99723,"1,919.94",CLASSIC DRINKS LIMITED,A00413,9,2014
Allerdale Borough Council,12301,Premises,Carnegie Theatre,Security,17/12/2014,99724,225.00,PM SECURITY,A02111,9,2014
Allerdale Borough Council,12301,Premises,Carnegie Theatre,Security,17/12/2014,99725,105.00,PM SECURITY ,A02111,9,2014
Allerdale Borough Council,14104,Transport,Public Convenience Cleaning,Repairs & Maintenance,17/12/2014,99726,21.67,GOODFELLOW & SONS,A00031,9,2014
Allerdale Borough Council,73102,Holding and Control Accounts,Capital Project Retentions,Holding Accounts General - Expenditure,17/12/2014,99727,"22,040.34",ENGINEERING (BARB) PIPEWORKS,A00903,9,2014
Allerdale Borough Council,12402,Premises,Carnegie Theatre,Electricity,17/12/2014,99728,"4,175.47",N POWER,X00015,9,2014
Allerdale Borough Council,15702,Supplies & Services,Off-street - Owned,Line Rentals,17/12/2014,99729,223.15,COBALT TELEPHONE TECHNOLOGY,A01008,9,2014
Allerdale Borough Council,70104,VAT,Input VAT,VAT - 20%,17/12/2014,99730,"2,560.27",BRITISH GAS,X00039,9,2014
Allerdale Borough Council,12408,Premises,Public Convenience Cleaning,Water & Sewage,17/12/2014,99731,70.95,UNITED UTILITIES ,X00011,9,2014
Allerdale Borough Council,15101,Supplies & Services,Weekly Collection Support Scheme,Equipment Costs,17/12/2014,99732,"2,575.30",EGBERT H TAYLOR & COMPANY LTD,A01706,9,2014
Allerdale Borough Council,12408,Premises,Public Convenience Cleaning,Water & Sewage,17/12/2014,99733,27.22,UNITED UTILITIES,X00011,9,2014
Allerdale Borough Council,12405,Premises,Customer Services Pay Group,Rentals and Lease Charges,17/12/2014,99734,133.74,SOLWAY PLAIN FUTURES LTD,A01194,9,2014
Allerdale Borough Council,15506,Supplies & Services,Cumbria Tourism,Professional Services,17/12/2014,99735,"2,045.00",CUMBRIA TOURISM,A00477,9,2014
Allerdale Borough Council,15603,Supplies & Services,Document Management Pay Group,Franking Machine Costs,17/12/2014,99736,300.00,THE MAILING ROOM (FP EXECUTIVE AGENCY LTD),A00733,9,2014
Allerdale Borough Council,15202,Supplies & Services,Carnegie Theatre,Bar Provision,17/12/2014,99737,21.26,SOLWAY HEATERS LTD,A00305,9,2014
Allerdale Borough Council,16150,Supplies & Services,Solway Wetlands Project,General Promotions,17/12/2014,99738,71.40,CATHY NEWBERY LIMITED,A02064,9,2014
Allerdale Borough Council,15506,Supplies & Services,KMAG Enhancement Activity,Professional Services,,99739,885.00,MODES USER ASSOCIATION,A00796,9,2014
Allerdale Borough Council,15501,Supplies & Services,Pest Control,Consultants Fees,,99740,20.00,BASIS (REGISTRATION) LTD,A01568,9,2014
Allerdale Borough Council,12201,Premises,Homelessness,Internal Maintenance,17/12/2014,99741,172.01,CUMBRIA SUPERGLAZE,A00982,9,2014
Allerdale Borough Council,10401,Employee Costs,Housing Services Pay Group,Agency Staff Costs,17/12/2014,99742,848.82,TEDGEM INVESTMENTS LTD,A01962,9,2014
Allerdale Borough Council,10401,Employee Costs,Housing Services Pay Group,Agency Staff Costs,17/12/2014,99743,864.36,TEDGEM INVESTMENTS LTD,A01962,9,2014
Allerdale Borough Council,20111,Third Party Payments,Environmental Initiatives,Voluntary Organisations,17/12/2014,99744,"1,100.00",GROUNDWORK NORTH EAST,A01805,9,2014
Allerdale Borough Council,15501,Supplies & Services,Parks and Grounds Maintenance,Consultants Fees,17/12/2014,99745,"1,500.00",A1 ARBORISTS LTD,A02104,9,2014
Allerdale Borough Council,15501,Supplies & Services,Homelessness,Consultants Fees,17/12/2014,99746,25.00,CASTLEGATE SURGERY,A01007,9,2014
Allerdale Borough Council,72101,Holding and Control Accounts,Workington Post Office,Expenditure,17/12/2014,99747,"3,000.00",Redacted information - included personal information ,A00915,9,2014
Allerdale Borough Council,15501,Supplies & Services,Delivering Jobs and Growth,Consultants Fees,,99748,"3,800.00",BROADBAND ACCESS STRATEGIES LLP,A02051,9,2014
Allerdale Borough Council,15101,Supplies & Services,Weekly Collection Support Scheme,Equipment Costs,17/12/2014,99749,"4,461.25",PLASTIC OMNIUM URBAN SYSTEMS LTD,A00159,9,2014
Allerdale Borough Council,33112,Income,Planning and Development,Planning Fees Income,17/12/2014,99750,670.00,Redacted information - included personal information ,M00676,9,2014
Allerdale Borough Council,15401,Supplies & Services,Planning and Development,General Stationery,17/12/2014,99751,-29.98,HEATONS OFFICE SOLUTION (PREV LAKELAND/INTEGRITY),A00069,9,2014
Allerdale Borough Council,15501,Supplies & Services,Revenue,Consultants Fees,17/12/2014,99752,20.00,ROSSENDALES LTD,A00964,9,2014
Allerdale Borough Council,16150,Supplies & Services,Town Centre Management,General Promotions,17/12/2014,99753,300.00,THE WORKINGTON ROTARY CLUB,A01547,9,2014
Allerdale Borough Council,15401,Supplies & Services,Planning and Development,General Stationery,17/12/2014,99754,79.93,HEATONS OFFICE SOLUTION (PREV LAKELAND/INTEGRITY),A00069,9,2014
Allerdale Borough Council,15401,Supplies & Services,Planning and Development,General Stationery,17/12/2014,99755,19.98,HEATONS OFFICE SOLUTION (PREV LAKELAND/INTEGRITY),A00069,9,2014
Allerdale Borough Council,15550,Supplies & Services,Out of Hours Telephones,General-Service Related Fees,17/12/2014,99756,6.60,ORBIS PROTECT LTD (PREV SITEXORBIS LIMITED),A00679,9,2014
Allerdale Borough Council,15550,Supplies & Services,Out of Hours Telephones,General-Service Related Fees,17/12/2014,99757,510.80,ORBIS PROTECT LTD (PREV SITEXORBIS LIMITED),A00679,9,2014
Allerdale Borough Council,15808,Supplies & Services,IT Services,Computer Consumables,17/12/2014,99758,44.80,MISCO,A00125,9,2014
Allerdale Borough Council,15808,Supplies & Services,IT Services,Computer Consumables,17/12/2014,99759,171.19,MISCO,A00125,9,2014
Allerdale Borough Council,15405,Supplies & Services,Anti Poverty,Use of External Printers,17/12/2014,99760,35.00,FIRPRESS PRINTERS,A00063,9,2014
Allerdale Borough Council,15405,Supplies & Services,Anti Poverty,Use of External Printers,17/12/2014,99761,165.00,FIRPRESS PRINTERS,A00063,9,2014
Allerdale Borough Council,15300,Supplies & Services,Animal Welfare,Budget-Prov of Clothing and Equipment,17/12/2014,99762,82.94,ARCO LIMITED - HEAD OFFICE HULL,A00045,9,2014
Allerdale Borough Council,26000,Earmarked Reserves,Small Blue Butterfly Project,Budget-Expd funded from Reserve,17/12/2014,99763,593.00,GROUNDWORK NORTH EAST,A01805,9,2014
Allerdale Borough Council,15401,Supplies & Services,Solway Coast AONB Core Funding,General Stationery,,99764,30.24,VIKING DIRECT,A00828,9,2014
Allerdale Borough Council,73102,Holding and Control Accounts,Capital Project Retentions,Holding Accounts General - Expenditure,17/12/2014,99765,"34,105.99",HISTORIC PROPERTY RESTORATIONS LIMITED,C00150,9,2014
Allerdale Borough Council,15301,Supplies & Services,Parking Services Pay Group,Uniforms,17/12/2014,99766,689.75,KELTIC,A00017,9,2014
Allerdale Borough Council,54105,Capital Expenditure,Cluster of Empty Homes,Grants  Private Individuals (Capital),17/12/2014,99767,"2,540.00",Redacted information - included personal information ,M00642,9,2014
Allerdale Borough Council,54105,Capital Expenditure,Cluster of Empty Homes,Grants  Private Individuals (Capital),17/12/2014,99768,"3,787.20",Redacted information - included personal information ,M00642,9,2014
Allerdale Borough Council,54105,Capital Expenditure,Disabled Facilities Grants,Grants  Private Individuals (Capital),17/12/2014,99769,"2,799.88",JACOBS STOBBARTS LIMITED,C00139,9,2014
Allerdale Borough Council,54105,Capital Expenditure,Disabled Facilities Grants,Grants  Private Individuals (Capital),17/12/2014,99770,"2,772.63",DOLPHIN STAIRLIFTS CUMBRIA,X00107,9,2014
Allerdale Borough Council,16350,Supplies & Services,Supporting Homes at risk of flooding,Miscellaneous Expenses,17/12/2014,99771,"1,096.80",Redacted information - included personal information ,M00677,9,2014
Allerdale Borough Council,16350,Supplies & Services,Homelessness,Miscellaneous Expenses,17/12/2014,99772,390.00,BR PROPERTIES MANAGEMENT,M00239,9,2014
Allerdale Borough Council,54105,Capital Expenditure,Disabled Facilities Grants,Grants  Private Individuals (Capital),17/12/2014,99773,"6,356.40",DISENO ASSOCIATES LTD,X00221,9,2014
Allerdale Borough Council,54105,Capital Expenditure,Disabled Facilities Grants,Grants  Private Individuals (Capital),17/12/2014,99774,"5,080.00",ROBERT SCOTT LTD,X00160,9,2014
Allerdale Borough Council,15502,Supplies & Services,Legal Services,Land Registry Fees,,99775,21.00,HM LAND REGISTRY,A00505,9,2014
Allerdale Borough Council,16004,Supplies & Services,Banking and Interest,All Pay Transaction Costs,17/12/2014,99776,26.66,ALLPAY.NET LIMITED,A00714,9,2014
Allerdale Borough Council,16004,Supplies & Services,Banking and Interest,All Pay Transaction Costs,17/12/2014,99777,33.52,ALLPAY.NET LIMITED,A00714,9,2014
Allerdale Borough Council,16004,Supplies & Services,Banking and Interest,All Pay Transaction Costs,17/12/2014,99778,69.69,ALLPAY.NET LIMITED,A00714,9,2014
Allerdale Borough Council,16004,Supplies & Services,Banking and Interest,All Pay Transaction Costs,17/12/2014,99779,20.96,ALLPAY.NET LIMITED,A00714,9,2014
Allerdale Borough Council,16004,Supplies & Services,Banking and Interest,All Pay Transaction Costs,17/12/2014,99780,18.76,ALLPAY.NET LIMITED,A00714,9,2014
Allerdale Borough Council,16004,Supplies & Services,Banking and Interest,All Pay Transaction Costs,17/12/2014,99781,17.50,ALLPAY.NET LIMITED,A00714,9,2014
Allerdale Borough Council,16004,Supplies & Services,Banking and Interest,All Pay Transaction Costs,17/12/2014,99782,26.66,ALLPAY.NET LIMITED,A00714,9,2014
Allerdale Borough Council,16004,Supplies & Services,Banking and Interest,All Pay Transaction Costs,17/12/2014,99783,21.81,ALLPAY.NET LIMITED,A00714,9,2014
Allerdale Borough Council,16004,Supplies & Services,Banking and Interest,All Pay Transaction Costs,17/12/2014,99784,22.28,ALLPAY.NET LIMITED,A00714,9,2014
Allerdale Borough Council,15803,Supplies & Services,Planning Service Del Improvement,Hardware Purchase,17/12/2014,99785,"2,200.00",NORTHGATE INFORMATION SOLUTIONS,A00213,9,2014
Allerdale Borough Council,15404,Supplies & Services,Legal Services,Reference Materials,17/12/2014,99786,943.00,SWEET & MAXWELL (THOMSON REUTERS),A00028,9,2014
Allerdale Borough Council,16004,Supplies & Services,Banking and Interest,All Pay Transaction Costs,17/12/2014,99787,25.79,ALLPAY.NET LIMITED,A00714,9,2014
Allerdale Borough Council,16004,Supplies & Services,Banking and Interest,All Pay Transaction Costs,17/12/2014,99788,22.66,ALLPAY.NET LIMITED,A00714,9,2014
Allerdale Borough Council,16004,Supplies & Services,Banking and Interest,All Pay Transaction Costs,17/12/2014,99789,25.26,ALLPAY.NET LIMITED,A00714,9,2014
Allerdale Borough Council,16004,Supplies & Services,Banking and Interest,All Pay Transaction Costs,17/12/2014,99790,17.50,ALLPAY.NET LIMITED,A00714,9,2014
Allerdale Borough Council,16004,Supplies & Services,Banking and Interest,All Pay Transaction Costs,17/12/2014,99791,17.50,ALLPAY.NET LIMITED,A00714,9,2014
Allerdale Borough Council,16004,Supplies & Services,Banking and Interest,All Pay Transaction Costs,17/12/2014,99792,67.48,ALLPAY.NET LIMITED,A00714,9,2014
Allerdale Borough Council,16004,Supplies & Services,Banking and Interest,All Pay Transaction Costs,17/12/2014,99793,33.95,ALLPAY.NET LIMITED,A00714,9,2014
Allerdale Borough Council,16004,Supplies & Services,Banking and Interest,All Pay Transaction Costs,17/12/2014,99794,36.93,ALLPAY.NET LIMITED,A00714,9,2014
Allerdale Borough Council,16150,Supplies & Services,"The Hub, Workington Town Centre",General Promotions,,99795,183.70,ESSENTIAL SUPPLIES UK LIMITED,A02120,9,2014
Allerdale Borough Council,12303,Premises,Corporate Property Maintenance,Window Cleaning,17/12/2014,99796,210.00,SG HART WINDOW CLEANING,A00405,9,2014
Allerdale Borough Council,15101,Supplies & Services,Public Convenience Cleaning,Equipment Costs,17/12/2014,99797,"1,124.80",INSTOCK (CHANDLERS),A00050,9,2014
Allerdale Borough Council,12305,Premises,Corporate Property Maintenance,Inspections and Services,17/12/2014,99798,66.00,ROLAND HILL (PARSONBY) LTD,C00010,9,2014
Allerdale Borough Council,15500,Supplies & Services,Legal Services,Budget-Services,,99799,"15,700.00",CIVICA UK LIMITED,A00006,9,2014
Allerdale Borough Council,20150,Third Party Payments,Footways,General Partnership Service Fees,17/12/2014,99800,"1,727.10",J & J ELECTRICAL (CUMBRIA) LTD,C00038,9,2014
Allerdale Borough Council,10401,Employee Costs,Planning and Development,Agency Staff Costs,,99801,"1,365.00",MATCHTECH UK LTD,A02117,9,2014
Allerdale Borough Council,15508,Supplies & Services,Planning and Development,Subscriptions,17/12/2014,99802,"1,423.00",SWEET & MAXWELL (THOMSON REUTERS),A00028,9,2014
Allerdale Borough Council,15501,Supplies & Services,Building Control - Non-Chargeable,Consultants Fees,17/12/2014,99803,525.00,BINGHAM YATES & PARTNER,A00003,9,2014
Allerdale Borough Council,15514,Supplies & Services,Carnegie Theatre,Public Entertainment,17/12/2014,99804,129.90,BROUGHTON CRAGGS HOTEL,A00705,9,2014
Allerdale Borough Council,15101,Supplies & Services,Weekly Collection Support Scheme,Equipment Costs,,99805,"13,471.20",CRAEMER UK LTD,A01016,9,2014
Allerdale Borough Council,20150,Third Party Payments,Mortgage Repossession Support,General Partnership Service Fees,17/12/2014,99806,"1,250.00",CITIZENS ADVICE BUREAU,A01181,9,2014
Allerdale Borough Council,15202,Supplies & Services,Carnegie Theatre,Bar Provision,17/12/2014,99807,803.59,DRINKS EXPRESS,A01862,9,2014
Allerdale Borough Council,15513,Supplies & Services,Carnegie Theatre,Subcontractors - General,17/12/2014,99808,582.50,R W AUDIO,C00059,9,2014
Allerdale Borough Council,15506,Supplies & Services,KMAG Enhancement Activity,Professional Services,17/12/2014,99809,94.96,KESWICK MUSEUM & ART GALLERY,A00337,9,2014
Allerdale Borough Council,20150,Third Party Payments,Mortgage Repossession Support,General Partnership Service Fees,17/12/2014,99810,"1,250.00",CITIZENS ADVICE BUREAU,A01181,9,2014
Allerdale Borough Council,15500,Supplies & Services,Economic Regeneration,Budget-Services,,99811,"3,500.00",SBSOLUTIONS,A02122,9,2014
Allerdale Borough Council,15101,Supplies & Services,Street Cleansing,Equipment Costs,17/12/2014,99812,147.00,FIRPRESS PRINTERS,A00063,9,2014
Allerdale Borough Council,15101,Supplies & Services,Recycling,Equipment Costs,17/12/2014,99813,90.00,FIRPRESS PRINTERS,A00063,9,2014
Allerdale Borough Council,14105,Transport,Animal Welfare,"Fuel, Lubricants & Consumables",17/12/2014,99814,19.11,DOBIES VAUXHALL,A00254,9,2014
Allerdale Borough Council,16150,Supplies & Services,Solway Coast AONB Core Funding,General Promotions,17/12/2014,99815,300.00,CHOCTAW MEDIA LTD,A00756,9,2014
Allerdale Borough Council,12402,Premises,Corporate Property Maintenance,Electricity,17/12/2014,99816,120.84,N POWER,X00015,9,2014
Allerdale Borough Council,12402,Premises,Corporate Property Maintenance,Electricity,17/12/2014,99817,303.90,N POWER,X00015,9,2014
Allerdale Borough Council,12402,Premises,Corporate Property Maintenance,Electricity,17/12/2014,99818,17.59,N POWER,X00015,9,2014
Allerdale Borough Council,12402,Premises,Corporate Property Maintenance,Electricity,17/12/2014,99819,30.37,N POWER,X00015,9,2014
Allerdale Borough Council,12402,Premises,Corporate Property Maintenance,Electricity,17/12/2014,99820,"1,713.09",N POWER,X00015,9,2014
Allerdale Borough Council,12402,Premises,Corporate Property Maintenance,Electricity,17/12/2014,99821,"1,438.05",N POWER,X00015,9,2014
Allerdale Borough Council,12402,Premises,Public Convenience Cleaning,Electricity,17/12/2014,99822,4.66,N POWER,X00015,9,2014
Allerdale Borough Council,12402,Premises,Corporate Property Maintenance,Electricity,17/12/2014,99823,5.64,N POWER,X00015,9,2014
Allerdale Borough Council,12402,Premises,Public Convenience Cleaning,Electricity,17/12/2014,99824,33.90,N POWER,X00015,9,2014
Allerdale Borough Council,12402,Premises,Public Convenience Cleaning,Electricity,17/12/2014,99825,26.86,N POWER,X00015,9,2014
Allerdale Borough Council,12402,Premises,Public Convenience Cleaning,Electricity,17/12/2014,99826,238.95,N POWER,X00015,9,2014
Allerdale Borough Council,12402,Premises,Corporate Property Maintenance,Electricity,17/12/2014,99827,312.54,N POWER,X00015,9,2014
Allerdale Borough Council,12402,Premises,Car Parks Inspection & Maintenance,Electricity,17/12/2014,99828,11.64,N POWER,X00015,9,2014
Allerdale Borough Council,12402,Premises,Public Convenience Cleaning,Electricity,17/12/2014,99829,4.72,N POWER,X00015,9,2014
Allerdale Borough Council,12402,Premises,Corporate Property Maintenance,Electricity,17/12/2014,99830,5.69,N POWER,X00015,9,2014
Allerdale Borough Council,12402,Premises,Public Convenience Cleaning,Electricity,17/12/2014,99831,6.16,N POWER,X00015,9,2014
Allerdale Borough Council,12402,Premises,Public Convenience Cleaning,Electricity,17/12/2014,99832,5.85,N POWER,X00015,9,2014
Allerdale Borough Council,12402,Premises,Public Convenience Cleaning,Electricity,17/12/2014,99833,60.98,N POWER,X00015,9,2014
Allerdale Borough Council,12402,Premises,Public Convenience Cleaning,Electricity,17/12/2014,99834,116.83,N POWER,X00015,9,2014
Allerdale Borough Council,12402,Premises,Corporate Property Maintenance,Electricity,17/12/2014,99835,4.72,N POWER,X00015,9,2014
Allerdale Borough Council,12402,Premises,Corporate Property Maintenance,Electricity,17/12/2014,99836,15.41,N POWER,X00015,9,2014
Allerdale Borough Council,12402,Premises,Corporate Property Maintenance,Electricity,17/12/2014,99837,456.43,N POWER,X00015,9,2014
Allerdale Borough Council,12402,Premises,Corporate Property Maintenance,Electricity,17/12/2014,99838,394.32,N POWER,X00015,9,2014
Allerdale Borough Council,12402,Premises,Corporate Property Maintenance,Electricity,17/12/2014,99839,5.24,N POWER,X00015,9,2014
Allerdale Borough Council,16004,Supplies & Services,Banking and Interest,All Pay Transaction Costs,17/12/2014,99840,19.35,ALLPAY.NET LIMITED,A00714,9,2014
Allerdale Borough Council,16004,Supplies & Services,Banking and Interest,All Pay Transaction Costs,17/12/2014,99841,"1,602.97",ALLPAY.NET LIMITED,A00714,9,2014
Allerdale Borough Council,12402,Premises,Corporate Property Maintenance,Electricity,17/12/2014,99842,83.79,BRITISH GAS,X00039,9,2014
Allerdale Borough Council,12403,Premises,Corporate Property Maintenance,Gas,17/12/2014,99843,9.47,EON,X00016,9,2014
Allerdale Borough Council,12403,Premises,Corporate Property Maintenance,Gas,17/12/2014,99844,-145.19,BRITISH GAS,X00039,9,2014
Allerdale Borough Council,15750,Supplies & Services,Enterprise Coaches,General Telecommunications Costs,17/12/2014,99845,135.63,BRITISH TELECOMMUNICATIONS,X00004,9,2014
Allerdale Borough Council,12408,Premises,Corporate Property Maintenance,Water & Sewage,17/12/2014,99846,119.71,UNITED UTILITIES,X00011,9,2014
Allerdale Borough Council,12408,Premises,Corporate Property Maintenance,Water & Sewage,17/12/2014,99847,42.43,UNITED UTILITIES,X00011,9,2014
Allerdale Borough Council,12402,Premises,Corporate Property Maintenance,Electricity,17/12/2014,99848,-83.79,BRITISH GAS,X00039,9,2014
Allerdale Borough Council,20111,Third Party Payments,Localities & Partnerships,Voluntary Organisations,17/12/2014,99849,"1,550.00",DERWENT 7 CLUSTER GROUP,M00452,9,2014
Allerdale Borough Council,20111,Third Party Payments,Localities & Partnerships,Voluntary Organisations,17/12/2014,99850,"1,550.00",ASPATRIA RURAL GROUP,M00454,9,2014
Allerdale Borough Council,12402,Premises,Footways,Electricity,17/12/2014,99851,"4,958.77",N POWER,X00015,9,2014
Allerdale Borough Council,99900,Suspense Acc,9599,Budget - SUSPENSE,,99852,120.00,Redacted information - included personal information ,R00008,9,2014
Allerdale Borough Council,99900,Suspense Acc,9599,Budget - SUSPENSE,,99853,15.60,Redacted information - included personal information ,R00009,9,2014
Allerdale Borough Council,99900,Suspense Acc,9599,Budget - SUSPENSE,,99854,15.60,Redacted information - included personal information ,R00009,9,2014
Allerdale Borough Council,99900,Suspense Acc,9599,Budget - SUSPENSE,,99855,15.60,Redacted information - included personal information ,R00009,9,2014
Allerdale Borough Council,99900,Suspense Acc,9599,Budget - SUSPENSE,,99856,15.60,Redacted information - included personal information ,R00009,9,2014
Allerdale Borough Council,99900,Suspense Acc,9599,Budget - SUSPENSE,,99857,15.60,Redacted information - included personal information ,R00009,9,2014
Allerdale Borough Council,75103,Holding and Control Accounts,Payroll Suspense Account,PAYROLL December 14 Travel & Subsistence  ,,,14667.38,INLAND REVENUE,X00038,9,2014
